bitfinex/quotes_ETHUSD_20250711
["timestamp","ask_amount","ask_price","bid_price","bid_amount"]
[1752201534987,3.37234178,2965.3,2964.2,0.4303]
[1752201535253,5.6631,2965.2,2964.2,0.4303]
[1752201535453,5.6631,2965.2,2964.0,0.7734]
[1752201535454,0.99641,2965.1,2964.0,0.7734]
[1752201535660,0.4301,2965.0,2964.0,0.7734]
[1752201536444,3.8027923,2965.0,2964.0,0.7734]
[1752201536650,0.8304,2964.8,2963.8,0.4303]
[1752201536853,0.4301,2964.7,2963.6,0.7734]
[1752201537213,0.46334661,2964.6,2963.6,0.7734]
[1752201537416,0.46334661,2964.6,2962.8,3.37516643]
[1752201537417,0.4301,2964.5,2963.2,1.29569015]
[1752201537613,5.233,2964.4,2963.2,1.29569015]
[1752201537833,0.4301,2964.3,2963.2,1.29569015]
[1752201538637,5.231,2964.3,2963.4,3.37440777]
[1752201538859,5.231,2964.3,2963.5,10.84788927]
[1752201539156,5.231,2964.3,2963.5,10.81414539]
[1752201539353,0.4301,2964.7,2963.5,10.81414539]
[1752201539553,5.231,2964.6,2963.5,10.38384539]
[1752201539877,5.231,2964.6,2963.6,0.4303]
[1752201540094,0.56611,2964.5,2963.7,0.0337416]
[1752201540554,0.4301,2964.4,2963.3,10.0]
[1752201540882,0.5981,2964.4,2963.8,0.168]
[1752201541046,0.4301,2964.3,2963.8,0.168]
[1752201541252,0.7592,2964.2,2963.2,1.29569015]
[1752201541555,0.88637941,2964.1,2963.2,0.09199015]
[1752201541883,0.168,2963.9,2963.4,0.168]
[1752201542083,5.6611,2963.8,2963.4,0.168]
[1752201542384,0.4301,2963.7,2963.4,0.168]
[1752201542547,0.4301,2963.6,2963.4,0.168]
[1752201542747,0.4301,2963.5,2963.4,0.168]
[1752201543542,0.4301,2963.5,2963.2,0.09199015]
[1752201543758,1.2016,2963.4,2963.2,0.09199015]
[1752201544146,0.4301,2963.3,2963.2,0.09199015]
[1752201545376,0.9395,2963.4,2963.2,0.09199015]
[1752201545575,5.227,2963.3,2963.2,0.09199015]
[1752201545960,5.228,2963.3,2963.2,0.09199015]
[1752201546160,0.4301,2963.6,2963.2,0.25999015]
[1752201546367,0.168,2963.7,2963.2,0.62348076]
[1752201546571,5.227,2963.6,2963.4,0.168]
[1752201547381,0.7654,2963.8,2963.4,0.168]
[1752201547382,5.227,2963.5,2963.4,0.168]
[1752201547543,5.228,2963.5,2963.4,0.168]
[1752201547955,0.7654,2963.8,2963.4,0.168]
[1752201548191,5.227,2963.7,2963.4,3.9728017]
[1752201548351,5.227,2963.7,2963.5,0.47715017]
[1752201548550,5.227,2963.7,2963.6,0.168]
[1752201548848,1.4202,2964.2,2963.6,0.168]
[1752201549054,5.227,2964.0,2963.6,0.168]
[1752201549255,5.6571,2964.0,2963.6,0.168]
[1752201549499,0.4301,2963.9,2963.6,0.168]
[1752201550278,0.56611,2964.5,2963.7,0.4303]
[1752201550479,5.225,2963.8,2963.7,0.4303]
[1752201550657,5.225,2963.8,2963.6,3.37424495]
[1752201550864,5.225,2963.8,2963.7,0.168]
[1752201551277,5.225,2963.8,2963.7,10.168]
[1752201551593,5.225,2963.8,2963.7,0.168]
[1752201551997,5.6551,2963.8,2963.7,0.168]
[1752201552289,5.6551,2963.8,2963.5,0.168]
[1752201554584,0.4301,2963.7,2963.5,0.168]
[1752201554786,5.225,2963.8,2963.5,0.168]
[1752201554787,0.4301,2963.6,2963.5,0.168]
[1752201555297,5.88859,2963.8,2963.5,0.168]
[1752201555499,5.225,2963.8,2963.5,0.168]
[1752201556098,5.6551,2963.8,2963.5,0.168]
[1752201556266,0.8128,2963.9,2963.5,0.168]
[1752201556463,5.221,2963.8,2963.5,0.168]
[1752201556668,5.6511,2963.8,2963.5,0.168]
[1752201557069,5.221,2963.7,2963.5,0.168]
[1752201557269,0.8128,2963.9,2963.5,0.168]
[1752201557472,5.22,2963.8,2963.5,0.168]
[1752201557706,0.168,2964.0,2963.5,0.168]
[1752201557911,5.22,2963.9,2963.5,0.168]
[1752201558269,5.6501,2963.9,2963.5,0.168]
[1752201559295,5.219,2963.8,2963.5,0.168]
[1752201560492,5.219,2963.8,2963.5,0.6361]
[1752201561082,8.094,2964.1,2963.5,3.84248518]
[1752201561288,5.215,2964.0,2963.7,0.168]
[1752201561905,5.6622,2964.0,2963.7,0.168]
[1752201562301,0.4472,2964.0,2963.7,0.168]
[1752201562503,5.214,2963.9,2963.7,0.168]
[1752201563205,8.094,2964.1,2963.6,3.37425407]
[1752201563405,8.094,2964.1,2963.8,0.168]
[1752201563607,5.212,2964.0,2963.8,0.168]
[1752201564179,8.094,2964.1,2963.8,0.168]
[1752201564577,5.212,2964.0,2963.5,1.012]
[1752201564896,5.212,2964.0,2963.9,0.168]
[1752201565093,8.094,2964.1,2963.9,0.168]
[1752201565492,5.6602,2964.0,2963.9,0.168]
[1752201565692,7.82802,2964.0,2963.5,0.2]
[1752201565914,0.4472,2963.9,2963.6,0.168]
[1752201566226,0.4472,2963.8,2963.6,0.168]
[1752201566525,5.6612,2963.7,2963.5,0.2]
[1752201566820,5.213,2963.6,2963.5,0.2]
[1752201567119,8.094,2964.1,2963.6,0.168]
[1752201567303,5.213,2964.0,2963.6,10.168]
[1752201567514,5.6602,2964.0,2963.8,0.168]
[1752201567711,5.213,2963.9,2963.8,0.168]
[1752201567908,5.6602,2963.9,2963.8,0.168]
[1752201568100,5.6602,2963.9,2963.7,0.168]
[1752201568415,5.213,2963.8,2963.7,0.168]
[1752201568594,5.213,2963.8,2963.7,0.67976061]
[1752201568781,5.213,2963.8,2963.7,0.168]
[1752201568979,5.213,2963.8,2963.7,13.54216067]
[1752201569211,0.6152,2964.2,2963.7,10.168]
[1752201569416,5.211,2964.1,2963.7,10.168]
[1752201569710,0.4472,2964.1,2963.7,10.168]
[1752201570058,5.6582,2964.0,2963.7,0.168]
[1752201570328,5.6582,2964.0,2963.5,0.2]
[1752201570329,0.7924,2963.8,2963.5,0.2]
[1752201570534,5.6572,2963.7,2963.5,0.2]
[1752201570832,5.21,2963.7,2963.5,0.2]
[1752201571030,5.6572,2963.7,2963.5,0.2]
[1752201571231,0.4472,2963.6,2963.5,0.2]
[1752201571784,5.21,2963.7,2963.5,0.2]
[1752201572920,5.6572,2963.7,2963.5,0.2]
[1752201573126,0.7916,2964.0,2963.5,0.2]
[1752201573417,5.6562,2963.9,2963.5,0.2]
[1752201573618,0.4472,2963.8,2963.5,0.2]
[1752201573816,0.4472,2963.7,2963.5,0.2]
[1752201574120,5.209,2963.6,2963.5,0.2]
[1752201574315,0.168,2963.9,2963.5,0.2]
[1752201574520,5.6562,2963.8,2963.5,0.2]
[1752201574717,5.209,2963.8,2963.5,0.2]
[1752201575030,0.4472,2963.7,2963.5,0.2]
[1752201575624,5.209,2963.8,2963.5,0.2]
[1752201575823,0.168,2963.9,2963.5,0.2]
[1752201576128,0.168,2963.9,2963.6,0.168]
[1752201576129,5.207,2963.8,2963.6,0.168]
[1752201576625,5.6542,2963.8,2963.6,0.168]
[1752201577128,0.168,2964.2,2963.6,0.168]
[1752201577129,0.6152,2964.2,2963.6,0.168]
[1752201577329,0.6152,2964.2,2963.6,0.9982]
[1752201577636,5.205,2964.1,2963.6,0.9982]
[1752201577835,5.6522,2964.1,2963.6,1.1692045]
[1752201578003,5.205,2964.0,2963.6,1.1692045]
[1752201578331,5.205,2963.9,2963.6,1.1692045]
[1752201579209,0.4472,2964.1,2963.6,1.1692045]
[1752201579414,5.204,2963.8,2963.6,1.1692045]
[1752201580660,5.202,2963.7,2963.6,1.1692045]
[1752201581219,0.4472,2964.5,2963.8,3.37394196]
[1752201581514,0.4472,2964.5,2964.2,3.37359152]
[1752201581744,5.201,2964.4,2964.1,3.54162393]
[1752201581915,5.6482,2964.4,2964.1,0.168]
[1752201582114,0.4472,2964.4,2964.2,3.37359152]
[1752201582359,0.9588,2964.6,2964.2,0.8298]
[1752201582360,0.168,2964.6,2964.2,0.8298]
[1752201582541,8.094,2964.7,2964.6,3.37313634]
[1752201582846,0.02,2965.0,2964.7,0.8298]
[1752201583027,5.202,2964.9,2964.7,0.8298]
[1752201583349,5.202,2964.9,2964.4,3.37335685]
[1752201583651,5.202,2964.9,2964.6,0.168]
[1752201583652,5.9957,2964.9,2964.6,0.168]
[1752201584031,0.4472,2964.8,2964.6,0.168]
[1752201584230,0.4472,2964.7,2964.6,0.168]
[1752201584430,0.4472,2964.7,2964.1,0.168]
[1752201584431,0.6152,2964.7,2964.1,0.168]
[1752201584746,0.64629,2964.8,2963.7,10.0]
[1752201584747,5.6532,2964.6,2963.7,10.0]
[1752201584943,0.168,2964.4,2963.9,0.168]
[1752201585148,0.4472,2964.3,2963.9,0.168]
[1752201585352,5.6542,2964.2,2963.5,0.2]
[1752201585547,5.6542,2964.2,2963.7,0.168]
[1752201585548,0.4472,2964.1,2963.7,0.168]
[1752201585774,5.207,2964.0,2963.8,0.83444046]
[1752201585919,5.207,2964.0,2963.8,1.2688]
[1752201586120,5.207,2964.0,2963.9,0.168]
[1752201586121,5.6542,2964.0,2963.9,0.168]
[1752201586356,5.6542,2964.0,2963.7,0.168]
[1752201587350,5.207,2964.0,2963.7,0.54223798]
[1752201587515,5.211,2963.9,2963.7,3.84222934]
[1752201587733,5.211,2963.9,2963.8,10.0]
[1752201587933,5.211,2963.9,2963.8,14.10260216]
[1752201588569,5.21,2964.0,2963.9,13.37392681]
[1752201588769,0.9617,2964.5,2964.0,4.15153321]
[1752201588969,5.21,2964.4,2964.0,4.15153321]
[1752201589166,5.21,2964.4,2964.1,0.09244597]
[1752201589371,0.168,2964.5,2964.1,0.09244597]
[1752201589668,5.214,2964.7,2964.3,0.168]
[1752201589875,0.4472,2964.6,2964.3,0.168]
[1752201590165,6.0413,2964.7,2964.1,0.09244597]
[1752201590166,0.4472,2964.5,2964.1,0.09244597]
[1752201590367,0.5979,2964.4,2964.1,0.09244597]
[1752201590566,5.8419,2964.4,2964.1,0.09244597]
[1752201590872,5.244,2964.4,2964.1,0.09244597]
[1752201591171,0.4299,2964.3,2964.1,0.09244597]
[1752201591385,0.4299,2964.2,2964.1,0.09244597]
[1752201591739,1.3834,2964.2,2964.1,0.09244597]
[1752201594254,0.5979,2964.2,2964.1,0.09244597]
[1752201595485,0.168,2964.2,2964.1,0.09244597]
[1752201595666,5.244,2964.2,2964.1,0.09244597]
[1752201597588,5.244,2964.2,2964.1,0.09064944]
[1752201597589,7.518,2964.2,2964.1,0.09064944]
[1752201597790,10.89159152,2964.2,2964.1,0.09064944]
[1752201599394,10.89159152,2964.2,2963.5,0.21]
[1752201599395,1.3197,2963.6,2963.5,0.21]
[1752201599591,7.08408287,2963.6,2963.5,0.21]
[1752201599774,7.51398287,2963.6,2963.5,0.21]
[1752201599976,10.8882574,2963.6,2963.5,0.21]
[1752201600175,7.51398287,2963.6,2963.5,0.21]
[1752201600362,10.8882574,2963.6,2963.5,0.21]
[1752201600791,7.51398287,2963.6,2963.5,0.21]
[1752201601104,10.8882574,2963.6,2963.5,0.21]
[1752201601278,2.27398287,2963.6,2963.5,0.21]
[1752201601457,6.4376,2963.6,2963.5,0.21]
[1752201601994,5.406,2963.6,2963.5,0.21]
[1752201602961,0.168,2963.6,2963.5,0.21]
[1752201603196,5.8399,2963.6,2963.5,0.21]
[1752201603492,6.3899,2963.6,2963.5,0.21]
[1752201603696,8.24946525,2963.6,2963.5,0.21]
[1752201603873,11.62373978,2963.6,2963.5,0.21]
[1752201605272,6.38173978,2963.6,2963.5,0.21]
[1752201605494,11.62173978,2963.6,2963.5,0.21]
[1752201605867,6.38173978,2963.6,2963.5,0.21]
[1752201606067,11.62173978,2963.6,2963.5,0.21]
[1752201606267,11.62073978,2963.6,2963.5,0.21]
[1752201606602,0.24983979,2964.9,2963.5,0.21]
[1752201606603,8.093,2964.8,2963.6,0.7888]
[1752201606901,0.02,2965.0,2964.4,0.7888]
[1752201607069,0.02,2965.0,2964.9,14.16159503]
[1752201607270,5.257,2965.0,2964.9,14.16159503]
[1752201607498,0.02,2965.0,2964.9,14.16159503]
[1752201607666,0.02,2965.0,2964.9,14.61399503]
[1752201607870,1e-08,2965.0,2964.9,16.41268672]
[1752201609567,1e-08,2965.0,2964.9,10.7888]
[1752201610510,1e-08,2965.0,2964.9,10.0]
[1752201611987,0.42990001,2965.0,2964.3,0.8179]
[1752201612326,0.8037,2964.9,2964.0,1.2703]
[1752201612529,1.37089,2964.9,2964.0,1.2703]
[1752201612810,0.55,2964.7,2963.6,0.8213]
[1752201612986,0.55,2964.5,2963.6,0.8213]
[1752201613187,1.13499,2964.4,2963.6,0.8213]
[1752201613393,0.4299,2964.3,2963.6,0.8213]
[1752201613587,0.4299,2964.3,2963.5,0.21]
[1752201613588,5.242,2964.2,2963.5,0.21]
[1752201614105,0.4299,2964.1,2963.5,0.21]
[1752201614307,0.83,2964.0,2963.5,0.21]
[1752201614619,0.4299,2963.9,2963.5,0.21]
[1752201614817,6.13527403,2963.8,2963.5,0.21]
[1752201615233,0.4299,2963.7,2963.5,0.21]
[1752201615390,5.70537403,2963.8,2963.5,0.21]
[1752201616702,0.168,2963.6,2963.5,0.21]
[1752201619018,0.5979,2963.6,2963.5,0.21]
[1752201619198,1.2282274,2963.6,2963.5,0.21]
[1752201622406,4.60250193,2963.6,2963.5,0.21]
[1752201622598,1.2282274,2963.6,2963.5,0.21]
[1752201624733,2.5516274,2963.6,2963.5,0.21]
[1752201625399,5.92590193,2963.6,2963.5,0.21]
[1752201626341,2.5516274,2963.6,2963.5,0.21]
[1752201626633,5.92590193,2963.6,2963.5,0.21]
[1752201628536,11.15290193,2963.6,2963.5,0.21]
[1752201629423,0.168,2963.6,2963.5,0.21]
[1752201629734,5.393,2963.6,2963.5,0.21]
[1752201630041,0.168,2963.6,2963.5,0.21]
[1752201630520,5.396,2963.6,2963.5,0.21]
[1752201633642,0.001,2964.1,2963.5,1.4316]
[1752201633814,5.226,2964.0,2963.6,1.2501]
[1752201634013,5.226,2964.0,2963.7,0.4381]
[1752201634310,5.226,2964.0,2963.8,0.4381]
[1752201634637,5.226,2964.0,2963.9,0.4381]
[1752201634814,5.226,2964.0,2963.6,1.2501]
[1752201635019,5.226,2964.0,2963.7,0.4381]
[1752201636737,5.226,2964.0,2963.8,0.4381]
[1752201637229,0.169,2964.1,2963.9,1.2288]
[1752201637230,0.001,2964.1,2963.9,1.2288]
[1752201637430,0.001,2964.1,2964.0,0.4381]
[1752201638032,0.001,2964.1,2964.0,11.8983749]
[1752201638433,0.001,2964.1,2964.0,15.27219406]
[1752201639641,0.001,2964.1,2964.0,11.4602749]
[1752201639948,0.001,2964.1,2964.0,13.81191916]
[1752201640847,0.001,2964.1,2964.0,10.4381]
[1752201642558,0.001,2964.1,2963.7,3.37415249]
[1752201642559,0.001,2964.1,2963.7,0.7702]
[1752201642728,0.001,2964.1,2963.7,10.7702]
[1752201642924,0.001,2964.1,2963.7,11.2083]
[1752201643126,0.001,2964.1,2963.8,0.4381]
[1752201644036,0.001,2964.1,2963.7,0.7702]
[1752201644231,0.001,2964.1,2963.7,11.2083]
[1752201644431,0.001,2964.1,2963.7,1.2083]
[1752201644658,0.001,2964.1,2963.7,0.7702]
[1752201645026,0.001,2964.1,2963.7,1.2083]
[1752201646142,0.001,2964.1,2963.7,0.7702]
[1752201646659,5.235,2964.0,2963.7,1.2083]
[1752201646838,5.235,2964.0,2963.7,2.68755644]
[1752201647033,5.235,2964.0,2963.7,1.2083]
[1752201647235,0.001,2964.1,2963.7,4.14424738]
[1752201647433,5.234,2963.9,2963.8,0.6061]
[1752201649657,5.234,2963.9,2963.8,0.168]
[1752201651076,5.234,2963.9,2963.8,0.6128]
[1752201651239,5.229,2963.9,2963.8,0.6128]
[1752201651838,5.229,2963.9,2963.8,3.98684683]
[1752201652034,5.229,2963.9,2963.8,0.6128]
[1752201652242,5.227,2963.9,2963.8,0.6128]
[1752201653642,5.227,2963.9,2963.7,0.7702]
[1752201654150,5.227,2963.9,2963.7,10.7702]
[1752201654352,5.227,2963.9,2963.7,11.215]
[1752201655478,5.227,2963.9,2963.7,1.215]
[1752201656573,5.227,2963.9,2963.7,11.215]
[1752201656763,5.227,2963.9,2963.7,12.69830124]
[1752201656960,5.227,2963.9,2963.8,0.4448]
[1752201657153,5.227,2963.9,2963.5,0.21]
[1752201657154,5.227,2963.9,2963.5,10.21]
[1752201657344,5.227,2963.9,2963.5,10.6548]
[1752201657671,5.227,2963.9,2963.6,0.4448]
[1752201657872,0.001,2964.1,2963.8,0.8001]
[1752201658373,0.001,2964.1,2963.9,0.4448]
[1752201659075,0.001,2964.1,2963.8,0.8001]
[1752201659572,0.001,2964.1,2963.8,1.2449]
[1752201660782,0.001,2964.1,2963.5,0.9816]
[1752201660955,1.2363,2964.0,2963.5,0.21]
[1752201661153,0.79,2963.8,2963.5,0.21]
[1752201661352,5.779,2963.7,2963.5,0.21]
[1752201661678,0.4463,2963.6,2963.5,0.21]
[1752201661880,1.14783,2963.6,2963.5,0.21]
[1752201662477,5.90450453,2963.6,2963.5,0.21]
[1752201662958,7.20823,2963.6,2963.5,0.21]
[1752201663148,0.8324,2963.6,2963.5,0.21]
[1752201663349,5.231,2963.6,2963.5,0.21]
[1752201663550,5.399,2963.6,2963.5,0.21]
[1752201663845,0.168,2963.6,2963.5,0.21]
[1752201664045,5.399,2963.6,2963.5,0.21]
[1752201664776,0.001,2964.1,2963.5,1.0071]
[1752201664980,5.231,2964.0,2963.6,3.37425411]
[1752201665150,5.231,2964.0,2963.8,0.168]
[1752201665352,5.231,2964.0,2963.9,0.4448]
[1752201666153,5.231,2964.0,2963.9,3.81873299]
[1752201666352,5.231,2964.0,2963.9,0.4448]
[1752201668264,5.231,2964.0,2963.8,3.54200578]
[1752201668466,5.231,2964.0,2963.9,0.4448]
[1752201668668,0.001,2964.1,2964.0,10.0]
[1752201668867,0.001,2964.1,2964.0,13.37381916]
[1752201669078,0.001,2964.1,2964.0,13.81861916]
[1752201669381,0.001,2964.1,2963.9,10.0]
[1752201669585,0.001,2964.1,2963.9,11.69934028]
[1752201669750,0.001,2964.1,2964.0,13.37381916]
[1752201670155,0.001,2964.1,2964.0,14.63871916]
[1752201670363,0.001,2964.1,2964.0,14.80671916]
[1752201671894,1e-08,2964.1,2964.0,22.66717406]
[1752201672127,8.094,2964.9,2964.8,4.19220879]
[1752201672270,5.22700001,2965.0,2964.9,3.37279503]
[1752201672470,5.22700001,2965.0,2964.8,4.80500401]
[1752201673067,5.22700001,2965.0,2964.8,1.4321]
[1752201673304,5.22700001,2965.0,2964.8,4.80499414]
[1752201673611,5.22700001,2965.0,2964.8,1.4321]
[1752201674279,5.22800001,2965.0,2964.8,1.4321]
[1752201674499,5.22800001,2965.0,2964.8,0.168]
[1752201674675,6.51710001,2965.0,2964.3,0.4448]
[1752201674881,0.4463,2964.9,2964.5,0.168]
[1752201675077,0.4463,2964.8,2964.5,0.168]
[1752201675397,0.4463,2964.7,2964.5,0.168]
[1752201675770,0.4463,2964.6,2964.5,0.168]
[1752201675970,0.4463,2964.6,2964.2,0.168]
[1752201676304,5.6683,2964.5,2964.2,0.168]
[1752201676496,0.4463,2964.4,2964.2,0.168]
[1752201676877,0.4463,2964.3,2963.5,0.9956]
[1752201677081,0.4463,2964.3,2963.9,0.168]
[1752201677274,0.4463,2964.2,2963.9,0.168]
[1752201678669,0.9343,2964.4,2963.5,0.378]
[1752201678670,0.168,2964.0,2963.5,0.378]
[1752201679006,0.168,2963.7,2963.5,0.21]
[1752201679201,5.225,2963.6,2963.5,0.21]
[1752201682327,5.6559,2963.6,2963.5,0.21]
[1752201683081,5.225,2963.6,2963.5,0.21]
[1752201684291,5.219,2963.6,2963.5,0.8442]
[1752201685492,5.219,2963.6,2963.5,4.21858839]
[1752201685719,5.219,2963.6,2963.5,0.8442]
[1752201685893,5.219,2963.6,2963.5,0.378]
[1752201686892,5.219,2963.6,2963.5,0.21]
[1752201687812,6.4756,2963.6,2963.5,0.21]
[1752201688013,7.13996,2963.6,2963.5,0.21]
[1752201689914,0.168,2963.7,2963.5,0.21]
[1752201690093,5.219,2963.6,2963.5,0.21]
[1752201691784,0.168,2963.9,2963.5,0.6762]
[1752201691990,0.4309,2964.2,2963.7,10.0]
[1752201692191,0.168,2964.1,2963.8,3.84022761]
[1752201692385,0.8074,2964.4,2964.0,0.168]
[1752201692627,5.219,2964.3,2964.0,0.168]
[1752201695227,5.6499,2964.3,2964.0,0.168]
[1752201696507,5.6509,2964.3,2964.0,0.168]
[1752201697113,5.22,2964.3,2964.0,0.168]
[1752201697436,0.001,2964.3,2964.0,0.168]
[1752201697638,5.215,2964.2,2964.0,0.168]
[1752201702023,0.001,2964.3,2964.0,0.168]
[1752201702224,5.208,2964.2,2964.0,0.168]
[1752201702450,0.001,2964.3,2964.0,0.168]
[1752201702743,5.207,2964.2,2964.0,10.168]
[1752201703254,5.207,2964.1,2964.0,10.168]
[1752201703449,5.207,2964.1,2964.0,0.168]
[1752201704716,0.001,2964.3,2964.0,0.168]
[1752201704917,0.001,2964.3,2964.2,10.7579]
[1752201705444,0.001,2964.3,2964.2,11.2241]
[1752201705618,0.001,2964.3,2964.2,14.59769152]
[1752201706248,0.001,2964.3,2964.2,10.0]
[1752201706852,0.4319,2964.3,2964.2,10.0]
[1752201707462,0.4319,2964.3,2963.9,0.01]
[1752201708659,0.4309,2964.2,2963.9,0.01]
[1752201709944,0.8308,2964.3,2963.9,0.01]
[1752201710277,0.001,2964.3,2964.0,0.4662]
[1752201710438,0.001,2964.3,2964.1,0.438]
[1752201710637,0.001,2964.3,2964.2,3.37359152]
[1752201710869,0.001,2964.3,2964.2,3.81159152]
[1752201711072,5.21,2964.3,2964.0,0.7594]
[1752201711375,5.21,2964.3,2964.1,10.0]
[1752201711680,5.21,2964.3,2964.0,1.1974]
[1752201711853,0.001,2964.3,2964.0,2.68938421]
[1752201712168,5.21,2964.2,2964.0,1.49198421]
[1752201712337,5.21,2964.2,2963.9,0.01]
[1752201712534,0.001,2964.3,2963.9,0.01]
[1752201712846,0.001,2964.3,2964.2,13.37359152]
[1752201713050,5.21,2964.3,2964.2,15.6158361]
[1752201713861,5.21,2964.3,2964.2,12.24224458]
[1752201714169,5.21,2964.3,2964.2,10.438]
[1752201714874,5.21,2964.3,2964.2,10.606]
[1752201717166,5.21,2964.3,2964.2,13.97959152]
[1752201717675,5.206,2964.3,2964.2,10.606]
[1752201718045,5.205,2964.3,2964.2,10.606]
[1752201718244,5.205,2964.3,2964.2,12.08630785]
[1752201718462,5.205,2964.3,2964.2,10.168]
[1752201718773,5.205,2964.3,2964.2,10.606]
[1752201719286,5.204,2964.3,2964.2,10.606]
[1752201719986,5.204,2964.3,2964.2,10.168]
[1752201720698,5.204,2964.3,2964.0,0.01]
[1752201720850,0.472,2964.2,2964.0,0.178]
[1752201721055,5.201,2964.1,2964.0,0.178]
[1752201724698,0.001,2964.3,2964.0,0.178]
[1752201724989,5.201,2964.1,2964.0,1.66379504]
[1752201725281,5.201,2964.1,2964.0,1.83179504]
[1752201725793,0.001,2964.3,2964.0,1.83179504]
[1752201726106,0.001,2964.3,2964.2,10.0]
[1752201726305,5.202,2964.3,2964.2,10.0]
[1752201726625,5.202,2964.3,2964.2,13.54159152]
[1752201726761,5.202,2964.3,2964.2,13.97959152]
[1752201726762,0.001,2964.3,2964.2,13.97959152]
[1752201726960,5.202,2964.3,2964.2,13.97959152]
[1752201727160,5.202,2964.3,2964.2,15.79750874]
[1752201728598,5.202,2964.3,2964.2,2.42391722]
[1752201729472,5.202,2964.3,2964.2,0.168]
[1752201729693,5.674,2964.3,2964.2,0.168]
[1752201730382,5.202,2964.3,2964.2,0.168]
[1752201730817,5.674,2964.3,2964.0,0.01]
[1752201731018,0.472,2964.2,2964.0,0.178]
[1752201731921,5.202,2964.3,2964.0,0.178]
[1752201732117,0.472,2964.1,2964.0,0.01]
[1752201733887,5.673,2964.1,2964.0,0.01]
[1752201734420,5.201,2964.1,2964.0,0.01]
[1752201734788,0.169,2964.3,2964.0,0.01]
[1752201734984,0.169,2964.3,2964.0,0.178]
[1752201734985,0.001,2964.3,2964.0,0.178]
[1752201735284,0.001,2964.3,2964.1,10.0]
[1752201735285,5.201,2964.2,2964.1,10.0]
[1752201735489,0.001,2964.3,2964.2,0.168]
[1752201735708,5.202,2964.3,2964.2,0.168]
[1752201736121,5.202,2964.3,2964.2,10.168]
[1752201736327,5.202,2964.3,2964.2,13.97959152]
[1752201739413,5.202,2964.3,2964.2,10.606]
[1752201739608,5.202,2964.3,2964.2,10.168]
[1752201739801,5.202,2964.3,2964.2,13.54159152]
[1752201741946,0.001,2964.3,2964.2,13.54159152]
[1752201742142,5.202,2964.3,2964.2,13.54159152]
[1752201742315,5.202,2964.3,2964.2,15.27793036]
[1752201743634,5.202,2964.3,2964.2,15.72073036]
[1752201745236,0.001,2964.3,2964.2,15.72073036]
[1752201745448,5.201,2964.3,2964.2,15.72073036]
[1752201745647,5.201,2964.3,2964.2,15.27793036]
[1752201749750,5.201,2964.3,2964.2,10.168]
[1752201749944,5.6678,2964.3,2964.2,10.168]
[1752201750254,5.201,2964.3,2964.2,10.168]
[1752201751454,5.6678,2964.3,2964.2,10.168]
[1752201751629,5.201,2964.3,2964.2,10.168]
[1752201752858,5.201,2964.3,2964.2,13.54159152]
[1752201753155,5.201,2964.3,2964.2,10.168]
[1752201753459,0.001,2964.3,2964.2,16.19613067]
[1752201755762,0.00013176,2964.3,2964.2,16.19613067]
[1752201757251,0.00013176,2964.3,2964.2,0.168]
[1752201757471,0.46693176,2964.3,2964.2,0.168]
[1752201757635,0.46693176,2964.3,2964.0,0.178]
[1752201757823,6.1826,2964.2,2964.0,0.01]
[1752201758022,0.8156,2964.1,2964.0,0.01]
[1752201758222,6.2084072,2964.1,2964.0,0.01]
[1752201758657,2.83470186,2964.1,2964.0,0.01]
[1752201765339,6.4824,2964.1,2964.0,0.01]
[1752201765546,7.0324,2964.1,2964.0,0.01]
[1752201765946,1.2824,2964.1,2964.0,0.01]
[1752201766149,5.6668,2964.1,2964.0,0.01]
[1752201767032,0.4668,2964.1,2964.0,0.01]
[1752201767233,5.6668,2964.1,2964.0,0.01]
[1752201767434,5.2,2964.1,2964.0,0.01]
[1752201768937,5.6668,2964.1,2964.0,0.01]
[1752201772970,5.2,2964.1,2964.0,0.01]
[1752201775276,5.6592,2964.1,2964.0,0.01]
[1752201776369,5.2,2964.1,2964.0,0.01]
[1752201777152,5.6592,2964.1,2964.0,0.01]
[1752201777658,6.86697318,2964.1,2964.0,0.01]
[1752201777962,7.69107318,2964.1,2964.0,0.01]
[1752201778760,1.94107318,2964.1,2964.0,0.01]
[1752201778959,6.4823,2964.1,2964.0,0.01]
[1752201780270,7.0323,2964.1,2964.0,0.01]
[1752201781766,10.40600534,2964.1,2964.0,0.01]
[1752201781967,7.0323,2964.1,2964.0,0.01]
[1752201783675,6.0231,2964.1,2964.0,0.01]
[1752201783876,7.89402318,2964.1,2964.0,0.01]